{"text_format":"1","workbook":"xlsx","n_sheets":3,"sheets":["Welcome","Spreadsheet","Commentary"],"not_rendered":{"charts":1,"images":1,"macros":1,"external_links":0,"defined_names":0,"comments":0,"pivot_tables":0},"unopened":[],"bounds":{"document_bytes":16777216,"sheet_cells":100000,"rows_first":2000,"rows_last":500,"rows_between":2000,"halvings":0,"cell_chars":16384,"cell_head_chars":4096},"cells_cut":0,"cells_raw":0,"read":"whole","date_system":"1900"}

{"sheet":"Welcome","index":0,"n_rows":1,"n_cols":1,"rows_kept":1,"cut":false,"hidden":false,"merged":[]}
["Mail to Bioscand AB"]

{"sheet":"Spreadsheet","index":1,"n_rows":43,"n_cols":13,"rows_kept":43,"cut":false,"hidden":false,"merged":[]}
["Normalized Resistance Interpretation, NRI, calculations on MIC test results."]
["Species:",null,null,"Antimicrob.",null,null,{"$f":"B2&\" \"&E2","v":" "},"Tolerance:",0.15]
[]
["MIC","log2 MIC","Data",null,null,null,null,null,null,"The values highlighted in blue are used to construct the graph"]
[]
[null,null,null,null,null,null,null,null,null,"log2 MIC","MIC","NRI %","observations %"]
[2E-3,-9,null,null,null,null,null,null,null,-9,{"$f":"A7","v":2E-3},{"$f":"(NORMDIST(((J7*$G$12)+$G$13),5,1,TRUE))*100","v":2.8665157187919332E-5}]
[4.0000000000000001E-3,-8,null,null,null,null,null,null,null,-8.5,null,{"$f":"(NORMDIST(((J8*$G$12)+$G$13),5,1,TRUE)-NORMDIST(((J7*$G$12)+$G$13),5,1,TRUE))*100","v":0}]
[8.0000000000000002E-3,-7,null,null,null,null,null,null,null,-8,{"$f":"A8","v":4.0000000000000001E-3},{"$f":"(NORMDIST(((J9*$G$12)+$G$13),5,1,TRUE)-NORMDIST(((J8*$G$12)+$G$13),5,1,TRUE))*100","v":0}]
[1.6E-2,-6,null,null,null,null,null,null,null,-7.5,null,0]
[3.2000000000000001E-2,-5,null,null,null,null,null,null,null,-7,{"$f":"A9","v":8.0000000000000002E-3},0]
[6.4000000000000001E-2,-4,null,null,null,"slope",null,null,null,-6.5,null,0]
[0.125,{"$f":"LOG(A13,2)","v":-3},null,null,null,"intercept",null,null,null,-6,{"$f":"A10","v":1.6E-2},0]
[0.25,-2,null,null,null,null,null,null,null,-5.5,null,0]
[0.5,-1,null,null,null,null,null,null,null,-5,{"$f":"A11","v":3.2000000000000001E-2},0]
[1,0,null,null,null,null,"log2 μg/ml","μg/ml",null,-4.5,null,0]
[2,1,null,null,null,"mean",{"$f":"(5-G13)/G12","v":{"$error":"#DIV/0!"}},{"$f":"POWER(2,G17)","v":{"$error":"#DIV/0!"}},null,-4,{"$f":"A12","v":6.4000000000000001E-2},0]
[4,2,null,null,null,null,null,null,null,-3.5,null,0]
[8,3,null,null,null,"SD",null,null,null,-3,{"$f":"A13","v":0.125},0]
[16,4,null,null,null,null,null,null,null,-2.5,null,0]
[32,5,null,null,null,"mean+2*sd",{"$f":"(2*G19)+G17","v":{"$error":"#DIV/0!"}},{"$f":"POWER(2,G21)","v":{"$error":"#DIV/0!"}},null,-2,{"$f":"A14","v":0.25},0]
[64,6,null,null,null,null,null,null,null,-1.5,null,0]
[128,7,null,null,null,"COwt",null,{"$f":"POWER(2,(INT(G21+1)))","v":{"$error":"#DIV/0!"}},null,-1,{"$f":"A15","v":0.5},0]
[256,8,null,null,null,null,null,null,null,-0.5,null,0]
[512,9,null,null,null,null,null,null,null,0,{"$f":"A16","v":1},0]
[null,null,null,null,null,null,null,null,null,0.5,null,0]
[null,"Total observations",{"$f":"SUM(C7:C25)","v":0},null,null,null,null,null,null,1,{"$f":"A17","v":2},0]
[null,null,null,null,null,null,null,null,null,1.5,null,0]
[null,null,null,null,null,null,null,null,null,2,{"$f":"A18","v":4},0]
[null,null,null,null,null,null,null,null,null,2.5,null,0]
[null,null,null,null,null,null,null,null,null,3,{"$f":"A19","v":8},0]
[null,null,null,null,null,null,null,null,null,3.5,null,0]
[null,null,null,null,null,null,null,null,null,4,{"$f":"A20","v":16},0]
[null,null,null,null,null,null,null,null,null,4.5,null,0]
[null,null,null,null,null,null,null,null,null,5,{"$f":"A21","v":32},0]
[null,null,null,null,null,null,null,null,null,5.5,null,0]
[null,null,null,null,null,null,null,null,null,6,{"$f":"A22","v":64},0]
[null,null,null,null,null,null,null,null,null,6.5,null,0]
[null,null,null,null,null,null,null,null,null,7,{"$f":"A23","v":128},0]
[null,null,null,null,null,null,null,null,null,7.5,null,0]
[null,null,null,null,null,null,null,null,null,8,{"$f":"A24","v":256},0]
[null,null,null,null,null,null,null,null,null,8.5,null,0]
[null,null,null,null,null,null,null,null,null,9,{"$f":"A25","v":512},0]

{"sheet":"Commentary","index":2,"n_rows":0,"n_cols":0,"rows_kept":0,"cut":false,"hidden":false,"merged":[]}